[Event "SELL Games"]
[Site "Tartu, Estonia"]
[Date "2023.05.19"]
[Round "2.3"]
[White "Vardanyan, Aras"]
[Black "Obolonin, Filipp"]
[Result "1-0"]
[TimeControl "15min + 10sec per move each"]
[WhiteTitle "FM"]
[WhiteFideId "12808792"]
[BlackFideId "4505549"]
[WhiteElo "2255"]
[BlackElo "2017"]

1. c4 {[%clk 00:15:17]} {[%emt 00:00:02]} e6 {[%clk 00:15:20]} {[%emt
00:00:02]} 2. Nc3 {[%clk 00:15:26]} d5 {[%clk 00:15:29]} 3. d4 {[%clk
00:15:35]} {[%emt 00:00:02]} Nf6 {[%clk 00:15:38]} 4. cxd5 {[%clk 00:15:44]}
{[%emt 00:00:01]} exd5 {[%clk 00:15:47]} {[%emt 00:00:01]} 5. Bg5 {[%clk
00:15:53]} {[%emt 00:00:01]} c6 {[%clk 00:15:57]} 6. e3 {[%clk 00:16:01]}
{[%emt 00:00:01]} Bf5 {[%clk 00:16:06]} 7. Qf3 {[%clk 00:16:08]} {[%emt
00:00:03]} Bg6 {[%clk 00:16:07]} {[%emt 00:00:10]} 8. Bxf6 {[%clk 00:16:17]}
gxf6 {[%clk 00:16:15]} {[%emt 00:00:01]} 9. Nh3 {[%clk 00:15:58]} {[%emt
00:00:28]} Nd7 {[%clk 00:16:22]} {[%emt 00:00:04]} 10. Be2 {[%clk 00:16:00]}
{[%emt 00:00:08]} Qb6 {[%clk 00:16:27]} {[%emt 00:00:05]} 11. O-O {[%clk
00:15:24]} {[%emt 00:00:45]} Qxb2 {[%clk 00:16:33]} {[%emt 00:00:04]} 12. Rfc1
{[%clk 00:15:08]} {[%emt 00:00:26]} Ba3 {[%clk 00:16:30]} {[%emt 00:00:13]} 13.
e4 {[%clk 00:14:35]} {[%emt 00:00:43]} dxe4 {[%clk 00:16:38]} {[%emt 00:00:02]}
14. Nxe4 {[%clk 00:14:37]} {[%emt 00:00:09]} O-O {[%clk 00:16:44]} {[%emt
00:00:05]} 15. Rcb1 {[%clk 00:14:14]} {[%emt 00:00:32]} Qxd4 {[%clk 00:16:30]}
{[%emt 00:00:25]} 16. Qxa3 {[%clk 00:13:42]} {[%emt 00:00:42]} Qxe4 {[%clk
00:16:38]} {[%emt 00:00:02]} 17. Rxb7 {[%clk 00:13:24]} {[%emt 00:00:29]} Qxe2
{[%clk 00:16:39]} {[%emt 00:00:09]} 18. Rxd7 {[%clk 00:13:32]} {[%emt
00:00:02]} Rfd8 {[%clk 00:16:39]} {[%emt 00:00:08]} 19. Nf4 {[%clk 00:12:48]}
{[%emt 00:00:55]} Qe5 {[%clk 00:16:42]} {[%emt 00:00:08]} 20. Rxd8+ {[%clk
00:12:36]} {[%emt 00:00:21]} Rxd8 {[%clk 00:16:50]} {[%emt 00:00:01]} 21. Qc1
{[%clk 00:12:45]} Qd4 {[%clk 00:16:36]} {[%emt 00:00:24]} 22. g3 {[%clk
00:12:51]} {[%emt 00:00:04]} c5 {[%clk 00:16:42]} {[%emt 00:00:05]} 23. Qe1
{[%clk 00:12:45]} {[%emt 00:00:15]} Qe5 {[%clk 00:16:24]} {[%emt 00:00:28]} 24.
Qf1 {[%clk 00:12:44]} {[%emt 00:00:11]} Rd4 {[%clk 00:16:23]} {[%emt 00:00:11]}
25. Re1 {[%clk 00:12:48]} {[%emt 00:00:06]} Re4 {[%clk 00:16:32]} {[%emt
00:00:01]} 26. Rc1 {[%clk 00:12:57]} Qg5 {[%clk 00:14:56]} {[%emt 00:01:47]} 27.
h4 {[%clk 00:12:56]} {[%emt 00:00:11]} Qg4 {[%clk 00:14:15]} {[%emt 00:00:51]}
28. Nd5 {[%clk 00:12:32]} {[%emt 00:00:35]} Kg7 {[%clk 00:14:09]} {[%emt
00:00:17]} 29. Rxc5 {[%clk 00:12:21]} {[%emt 00:00:20]} Qe6 {[%clk 00:14:08]}
{[%emt 00:00:10]} 30. Nf4 {[%clk 00:12:13]} {[%emt 00:00:18]} Qxa2 {[%clk
00:13:33]} {[%emt 00:00:46]} 31. h5 {[%clk 00:12:21]} {[%emt 00:00:01]} Qd2
{[%clk 00:13:42]} {[%emt 00:00:01]} 32. Rd5 {[%clk 00:12:12]} {[%emt 00:00:20]}
Qb4 {[%clk 00:13:28]} {[%emt 00:00:23]} 33. Qh3 {[%clk 00:11:05]} {[%emt
00:01:16]} Re1+ {[%clk 00:13:33]} {[%emt 00:00:06]} 34. Kh2 {[%clk 00:11:11]}
{[%emt 00:00:04]} Qe4 {[%clk 00:13:08]} {[%emt 00:00:34]} 35. h6+ {[%clk
00:11:18]} {[%emt 00:00:03]} 1-0

[Event "SELL Games"]
[Site "Tartu, Estonia"]
[Date "2023.05.19"]
[Round "2.4"]
[White "Galdikaite, Greta"]
[Black "Vanagas, Tadas"]
[Result "0-1"]
[TimeControl "15min + 10sec per move each"]
[WhiteFideId "12819956"]
[BlackFideId "12805467"]
[WhiteElo "1195"]
[BlackElo "2225"]

1. e4 {[%clk 00:15:19]} {[%emt 00:00:01]} c5 {[%clk 00:15:18]} {[%emt
00:00:01]} 2. Nf3 {[%clk 00:15:25]} {[%emt 00:00:04]} d6 {[%clk 00:15:27]} 3.
g3 {[%clk 00:15:17]} {[%emt 00:00:18]} Nc6 {[%clk 00:15:30]} {[%emt 00:00:07]}
4. Nc3 {[%clk 00:15:19]} {[%emt 00:00:09]} Nf6 {[%clk 00:15:37]} {[%emt
00:00:03]} 5. Bg2 {[%clk 00:15:24]} {[%emt 00:00:04]} e6 {[%clk 00:15:44]}
{[%emt 00:00:03]} 6. O-O {[%clk 00:15:17]} {[%emt 00:00:17]} Be7 {[%clk
00:15:52]} 7. d3 {[%clk 00:14:50]} {[%emt 00:00:38]} O-O {[%clk 00:15:59]}
{[%emt 00:00:03]} 8. Bg5 {[%clk 00:14:38]} {[%emt 00:00:22]} Rb8 {[%clk
00:16:02]} {[%emt 00:00:07]} 9. Ne2 {[%clk 00:13:32]} {[%emt 00:01:17]} b5
{[%clk 00:16:01]} {[%emt 00:00:11]} 10. Qd2 {[%clk 00:13:05]} {[%emt 00:00:36]}
b4 {[%clk 00:16:05]} {[%emt 00:00:06]} 11. b3 {[%clk 00:13:09]} {[%emt
00:00:07]} a5 {[%clk 00:16:11]} {[%emt 00:00:04]} 12. a4 {[%clk 00:13:17]}
{[%emt 00:00:02]} h6 {[%clk 00:15:49]} {[%emt 00:00:31]} 13. Be3 {[%clk
00:13:05]} {[%emt 00:00:22]} Ng4 {[%clk 00:15:45]} {[%emt 00:00:14]} 14. h3
{[%clk 00:12:55]} {[%emt 00:00:20]} Nxe3 {[%clk 00:15:52]} {[%emt 00:00:02]} 15.
Qxe3 {[%clk 00:13:01]} {[%emt 00:00:05]} Bf6 {[%clk 00:15:33]} {[%emt
00:00:29]} 16. d4 {[%clk 00:10:48]} {[%emt 00:02:23]} Ba6 {[%clk 00:15:00]}
{[%emt 00:00:44]} 17. Rfd1 {[%clk 00:07:36]} {[%emt 00:03:21]} Bxe2 {[%clk
00:15:04]} {[%emt 00:00:06]} 18. Qxe2 {[%clk 00:07:44]} {[%emt 00:00:02]} Nxd4
{[%clk 00:15:02]} {[%emt 00:00:12]} 19. Nxd4 {[%clk 00:07:43]} {[%emt
00:00:12]} cxd4 {[%clk 00:15:02]} {[%emt 00:00:09]} 20. Rd3 {[%clk 00:07:07]}
{[%emt 00:00:47]} Rc8 {[%clk 00:14:43]} {[%emt 00:00:29]} 21. f4 {[%clk
00:06:40]} {[%emt 00:00:38]} Rc5 {[%clk 00:14:39]} {[%emt 00:00:14]} 22. Re1
{[%clk 00:06:32]} {[%emt 00:00:17]} Qc7 {[%clk 00:14:41]} {[%emt 00:00:08]} 23.
Rd2 {[%clk 00:06:17]} {[%emt 00:00:25]} Rc8 {[%clk 00:14:46]} {[%emt 00:00:05]}
24. Rc1 {[%clk 00:06:18]} {[%emt 00:00:08]} Rc3 {[%clk 00:14:48]} {[%emt
00:00:08]} 25. Kh2 {[%clk 00:04:55]} {[%emt 00:01:33]} Rxb3 {[%clk 00:14:47]}
{[%emt 00:00:11]} 26. Qb5 {[%clk 00:02:07]} {[%emt 00:02:58]} Rc3 {[%clk
00:14:37]} {[%emt 00:00:21]} 27. Qe2 {[%clk 00:02:11]} {[%emt 00:00:06]} b3
{[%clk 00:14:37]} {[%emt 00:00:10]} 28. Rd3 {[%clk 00:01:05]} {[%emt 00:01:16]}
Rxd3 {[%clk 00:14:16]} {[%emt 00:00:31]} 29. Qxd3 {[%clk 00:01:04]} {[%emt
00:00:10]} b2 {[%clk 00:14:23]} {[%emt 00:00:03]} 30. Rb1 {[%clk 00:00:37]}
{[%emt 00:00:37]} Qxc2 {[%clk 00:14:32]} {[%emt 00:00:03]} 31. Qxc2 {[%clk
00:00:11]} {[%emt 00:00:36]} Rxc2 {[%clk 00:14:38]} {[%emt 00:00:02]} 32. Kg1
{[%clk 00:00:18]} {[%emt 00:00:04]} Rc1+ {[%clk 00:14:45]} {[%emt 00:00:03]}
0-1

[Event "SELL Games"]
[Site "Tartu, Estonia"]
[Date "2023.05.19"]
[Round "2.5"]
[White "Sirp, Karl Aleksander"]
[Black "Vanagaite, Giedre"]
[Result "1-0"]
[TimeControl "15min + 10sec per move each"]
[BlackTitle "WFM"]
[WhiteFideId "4504712"]
[BlackFideId "12800546"]
[WhiteElo "2033"]
[BlackElo "1995"]

1. d4 {[%clk 00:15:15]} {[%emt 00:00:04]} Nf6 {[%clk 00:15:18]} {[%emt
00:00:03]} 2. Nf3 {[%clk 00:15:24]} {[%emt 00:00:01]} g6 {[%clk 00:15:26]}
{[%emt 00:00:02]} 3. Bf4 {[%clk 00:15:24]} {[%emt 00:00:09]} Bg7 {[%clk
00:15:34]} {[%emt 00:00:03]} 4. e3 {[%clk 00:15:33]} {[%emt 00:00:02]} c5
{[%clk 00:15:06]} {[%emt 00:00:37]} 5. c3 {[%clk 00:15:28]} {[%emt 00:00:15]}
b6 {[%clk 00:14:54]} {[%emt 00:00:22]} 6. Qb3 {[%clk 00:14:49]} {[%emt
00:00:48]} d6 {[%clk 00:14:42]} {[%emt 00:00:22]} 7. Bc4 {[%clk 00:14:13]}
{[%emt 00:00:46]} O-O {[%clk 00:14:20]} {[%emt 00:00:33]} 8. Bd5 {[%clk
00:13:58]} {[%emt 00:00:25]} Nxd5 {[%clk 00:13:26]} {[%emt 00:01:04]} 9. Qxd5
{[%clk 00:14:02]} {[%emt 00:00:06]} Qc7 {[%clk 00:12:42]} {[%emt 00:00:53]} 10.
Qxa8 {[%clk 00:13:27]} {[%emt 00:00:46]} Nc6 {[%clk 00:07:43]} {[%emt
00:05:09]} 11. d5 {[%clk 00:12:42]} {[%emt 00:00:54]} Na5 {[%clk 00:07:52]}
{[%emt 00:00:01]} 12. Nbd2 {[%clk 00:12:03]} {[%emt 00:00:49]} Ba6 {[%clk
00:07:48]} {[%emt 00:00:14]} 13. Qxf8+ {[%clk 00:12:10]} {[%emt 00:00:03]} Kxf8
{[%clk 00:07:56]} {[%emt 00:00:02]} 14. Nb3 {[%clk 00:11:01]} {[%emt 00:01:19]}
Nc4 {[%clk 00:07:31]} {[%emt 00:00:35]} 15. Rb1 {[%clk 00:09:39]} {[%emt
00:01:32]} Nxb2 {[%clk 00:06:21]} {[%emt 00:01:20]} 16. Rxb2 {[%emt 00:00:01]}
Bxc3+ {[%clk 00:06:29]} {[%emt 00:00:01]} 17. Rd2 {[%clk 00:09:58]} c4 {[%clk
00:06:37]} {[%emt 00:00:03]} 18. Nbd4 {[%clk 00:08:47]} {[%emt 00:01:20]} Qc5
{[%clk 00:06:39]} {[%emt 00:00:08]} 19. O-O {[%clk 00:08:20]} {[%emt 00:00:37]}
Bxd2 {[%clk 00:06:32]} {[%emt 00:00:17]} 20. Nxd2 {[%clk 00:08:28]} {[%emt
00:00:02]} Qxd5 {[%clk 00:05:46]} {[%emt 00:00:56]} 21. N2f3 {[%clk 00:07:36]}
{[%emt 00:01:01]} Kg7 {[%clk 00:04:07]} {[%emt 00:01:49]} 22. Ne2 {[%clk
00:05:17]} {[%emt 00:02:29]} Qa5 {[%clk 00:03:19]} {[%emt 00:00:58]} 23. e4
{[%clk 00:01:57]} {[%emt 00:03:31]} c3 {[%clk 00:03:04]} {[%emt 00:00:26]} 24.
Re1 {[%clk 00:02:06]} c2 {[%clk 00:02:09]} {[%emt 00:01:05]} 25. Nc1 {[%clk
00:02:01]} {[%emt 00:00:15]} e5 {[%clk 00:01:55]} {[%emt 00:00:24]} 26. Bd2
{[%clk 00:02:06]} {[%emt 00:00:05]} Qa4 {[%clk 00:01:55]} {[%emt 00:00:11]} 27.
Re3 {[%clk 00:01:39]} {[%emt 00:00:37]} Bc4 {[%clk 00:02:01]} {[%emt 00:00:03]}
28. a3 {[%clk 00:01:40]} {[%emt 00:00:09]} f5 {[%clk 00:01:01]} {[%emt
00:01:11]} 29. h3 {[%clk 00:01:38]} {[%emt 00:00:11]} fxe4 {[%clk 00:00:49]}
{[%emt 00:00:22]} 30. Rxe4 {[%emt 00:00:08]} Qc6 31. Re3 {[%clk 00:01:42]}
{[%emt 00:00:08]} Bd5 {[%clk 00:00:46]} {[%emt 00:00:23]} 32. Ne1 {[%clk
00:01:39]} {[%emt 00:00:13]} Be4 {[%clk 00:00:42]} {[%emt 00:00:13]} 33. Rc3
{[%clk 00:01:33]} {[%emt 00:00:16]} Qd5 {[%clk 00:00:51]} {[%emt 00:00:01]} 34.
Nb3 {[%clk 00:00:45]} {[%emt 00:00:57]} Kf6 {[%clk 00:00:39]} {[%emt 00:00:22]}
35. f3 {[%clk 00:00:38]} {[%emt 00:00:18]} Bf5 {[%clk 00:00:36]} {[%emt
00:00:13]} 36. g4 {[%clk 00:00:38]} {[%emt 00:00:10]} c1=Q {[%clk 00:00:40]}
{[%emt 00:00:05]} 37. Bxc1 {[%clk 00:00:24]} {[%emt 00:00:24]} Qd1 {[%clk
00:00:48]} {[%emt 00:00:02]} 38. Kf2 {[%clk 00:00:20]} {[%emt 00:00:14]} Be6
{[%clk 00:00:55]} {[%emt 00:00:03]} 39. Nd2 {[%clk 00:00:18]} {[%emt 00:00:12]}
d5 {[%clk 00:00:54]} {[%emt 00:00:11]} 40. Rc6 {[%clk 00:00:17]} {[%emt
00:00:12]} Ke7 {[%clk 00:00:59]} {[%emt 00:00:04]} 41. Nf1 {[%clk 00:00:20]}
{[%emt 00:00:07]} Kd7 {[%clk 00:01:04]} {[%emt 00:00:05]} 42. Rc2 {[%clk
00:00:16]} {[%emt 00:00:14]} d4 {[%clk 00:01:04]} {[%emt 00:00:10]} 43. Bd2
{[%clk 00:00:25]} Qa1 {[%clk 00:01:02]} {[%emt 00:00:12]} 44. Nd3 {[%clk
00:00:17]} {[%emt 00:00:18]} Kd6 {[%clk 00:00:32]} {[%emt 00:00:40]} 45. Bb4+
{[%clk 00:00:26]} Kd5 {[%clk 00:00:41]} {[%emt 00:00:01]} 46. Bf8 {[%clk
00:00:15]} {[%emt 00:00:21]} Qb1 {[%clk 00:00:39]} {[%emt 00:00:12]} 47. Nb4+
{[%clk 00:00:20]} {[%emt 00:00:04]} 1-0

[Event "SELL Games"]
[Site "Tartu, Estonia"]
[Date "2023.05.19"]
[Round "2.6"]
[White "Simkunaite, Gabija"]
[Black "Mikelsons, Mikelis-Emils"]
[Result "1-0"]
[TimeControl "15min + 10sec per move each"]
[WhiteTitle "WFM"]
[WhiteFideId "12808253"]
[BlackFideId "11607475"]
[WhiteElo "1964"]
[BlackElo "1877"]

1. e4 {[%clk 00:15:17]} {[%emt 00:24:29]} e5 {[%clk 00:15:19]} {[%emt
00:00:02]} 2. Nf3 {[%clk 00:15:25]} {[%emt 00:00:02]} Nc6 {[%clk 00:15:27]}
{[%emt 00:00:02]} 3. Nc3 {[%clk 00:15:33]} {[%emt 00:00:01]} Nf6 {[%clk
00:15:36]} {[%emt 00:00:01]} 4. d4 {[%clk 00:15:33]} {[%emt 00:00:11]} exd4
{[%clk 00:15:44]} {[%emt 00:00:02]} 5. Nxd4 {[%clk 00:15:40]} {[%emt 00:00:02]}
Bb4 {[%clk 00:15:52]} {[%emt 00:00:02]} 6. Nxc6 {[%clk 00:15:46]} {[%emt
00:00:04]} bxc6 {[%clk 00:16:01]} {[%emt 00:00:02]} 7. Bd3 {[%clk 00:15:54]}
{[%emt 00:00:01]} d5 {[%clk 00:16:09]} {[%emt 00:00:01]} 8. exd5 {[%clk
00:16:02]} {[%emt 00:00:02]} O-O {[%clk 00:16:18]} {[%emt 00:00:02]} 9. O-O
{[%clk 00:16:10]} {[%emt 00:00:02]} Bg4 {[%clk 00:16:26]} {[%emt 00:00:02]} 10.
Ne2 {[%clk 00:15:30]} {[%emt 00:00:49]} cxd5 {[%clk 00:16:10]} {[%emt
00:00:26]} 11. c4 {[%clk 00:15:34]} {[%emt 00:00:07]} Re8 {[%clk 00:14:29]}
{[%emt 00:01:51]} 12. Qc2 {[%clk 00:15:17]} {[%emt 00:00:27]} dxc4 {[%clk
00:10:31]} {[%emt 00:04:08]} 13. Bxc4 {[%clk 00:15:09]} {[%emt 00:00:18]} h6
{[%clk 00:09:33]} {[%emt 00:01:08]} 14. Ng3 {[%clk 00:14:41]} {[%emt 00:00:37]}
Qd6 {[%clk 00:09:05]} {[%emt 00:00:39]} 15. h3 {[%clk 00:14:09]} {[%emt
00:00:42]} Be6 {[%clk 00:09:11]} {[%emt 00:00:04]} 16. Bxe6 {[%clk 00:13:36]}
{[%emt 00:00:43]} Qxe6 {[%clk 00:09:14]} {[%emt 00:00:07]} 17. Bd2 {[%clk
00:13:18]} {[%emt 00:00:28]} Bd6 {[%clk 00:07:17]} {[%emt 00:02:07]} 18. Nf5
{[%clk 00:12:45]} {[%emt 00:00:42]} Ne4 {[%clk 00:07:24]} {[%emt 00:00:04]} 19.
Nxd6 {[%clk 00:12:44]} {[%emt 00:00:11]} cxd6 {[%clk 00:07:32]} {[%emt
00:00:03]} 20. Rae1 {[%clk 00:12:11]} {[%emt 00:00:42]} Qg6 {[%clk 00:04:08]}
{[%emt 00:03:34]} 21. Be3 {[%clk 00:11:10]} {[%emt 00:01:12]} Re6 {[%clk
00:03:02]} {[%emt 00:01:16]} 22. Qc6 {[%clk 00:09:44]} {[%emt 00:01:35]} Rae8
{[%clk 00:03:05]} {[%emt 00:00:08]} 23. Rd1 {[%clk 00:09:08]} {[%emt 00:00:46]}
a5 {[%clk 00:00:58]} {[%emt 00:02:18]} 24. Rd5 {[%clk 00:08:29]} {[%emt
00:00:48]} Ng3 {[%clk 00:00:47]} {[%emt 00:00:21]} 25. Rfd1 {[%clk 00:07:20]}
{[%emt 00:01:19]} Nf5 {[%clk 00:00:55]} {[%emt 00:00:02]} 26. Bf4 {[%clk
00:07:08]} {[%emt 00:00:22]} Nh4 {[%clk 00:00:43]} {[%emt 00:00:21]} 27. Rxd6
{[%clk 00:06:36]} {[%emt 00:00:42]} Re1+ {[%clk 00:00:52]} {[%emt 00:00:01]} 28.
Rxe1 {[%clk 00:06:35]} {[%emt 00:00:11]} Rxe1+ {[%clk 00:01:01]} {[%emt
00:00:01]} 29. Kh2 {[%clk 00:06:44]} Qb1 {[%clk 00:00:50]} {[%emt 00:00:21]} 30.
g3 {[%clk 00:03:41]} {[%emt 00:03:13]} Qxb2 {[%clk 00:00:42]} {[%emt 00:00:18]}
31. Rd2 {[%clk 00:02:28]} {[%emt 00:01:21]} Qb4 {[%clk 00:00:51]} {[%emt
00:00:03]} 32. a3 {[%clk 00:02:35]} {[%emt 00:00:03]} Qxa3 {[%emt 00:00:52]} 33.
gxh4 {[%clk 00:02:34]} {[%emt 00:00:10]} Qb4 {[%clk 00:00:12]} {[%emt
00:00:09]} 34. Qc8+ {[%clk 00:02:25]} {[%emt 00:00:18]} Kh7 {[%clk 00:00:18]}
{[%emt 00:00:04]} 35. Qf5+ {[%clk 00:02:33]} {[%emt 00:00:02]} 1-0

[Event "SELL Games"]
[Site "Tartu, Estonia"]
[Date "2023.05.19"]
[Round "2.7"]
[White "Perminaite, Guoda"]
[Black "Sibajeva, Marija"]
[Result "0-1"]
[TimeControl "15min + 10sec per move each"]
[BlackTitle "WFM"]
[WhiteFideId "12808784"]
[BlackFideId "12807583"]
[WhiteElo "1725"]
[BlackElo "1953"]

1. e4 {[%clk 00:15:19]} c5 {[%clk 00:15:20]} 2. Nf3 {[%clk 00:15:28]} {[%emt
00:00:02]} e6 {[%clk 00:15:29]} 3. d4 {[%clk 00:15:37]} {[%emt 00:00:02]} cxd4
{[%clk 00:15:38]} 4. Nxd4 {[%clk 00:15:46]} {[%emt 00:00:01]} a6 {[%clk
00:15:48]} 5. Nc3 {[%clk 00:15:50]} {[%emt 00:00:06]} b5 {[%clk 00:15:56]}
{[%emt 00:00:01]} 6. g3 {[%clk 00:13:47]} {[%emt 00:02:13]} Bb7 {[%clk
00:16:02]} {[%emt 00:00:04]} 7. Bg2 {[%clk 00:13:56]} {[%emt 00:00:02]} Nf6
{[%clk 00:15:44]} {[%emt 00:00:27]} 8. Bg5 {[%clk 00:13:31]} {[%emt 00:00:35]}
d6 {[%clk 00:13:01]} {[%emt 00:02:53]} 9. O-O {[%clk 00:13:27]} {[%emt
00:00:13]} Nbd7 {[%clk 00:12:57]} {[%emt 00:00:15]} 10. Qe2 {[%clk 00:12:43]}
{[%emt 00:00:53]} Qc7 {[%clk 00:12:14]} {[%emt 00:00:53]} 11. a3 {[%clk
00:11:29]} {[%emt 00:01:24]} Be7 {[%clk 00:12:05]} {[%emt 00:00:19]} 12. Rad1
{[%clk 00:10:41]} {[%emt 00:00:59]} O-O {[%clk 00:11:27]} {[%emt 00:00:48]} 13.
Bc1 {[%clk 00:10:35]} {[%emt 00:00:16]} Nb6 {[%clk 00:10:32]} {[%emt 00:01:04]}
14. f4 {[%clk 00:08:32]} {[%emt 00:02:14]} Nc4 {[%clk 00:10:37]} {[%emt
00:00:04]} 15. Rd3 {[%clk 00:08:35]} {[%emt 00:00:07]} Rac8 {[%clk 00:10:37]}
{[%emt 00:00:10]} 16. g4 {[%clk 00:05:30]} {[%emt 00:03:15]} Nd7 {[%clk
00:07:37]} {[%emt 00:03:11]} 17. g5 {[%clk 00:04:50]} {[%emt 00:00:50]} Rfe8
{[%clk 00:07:16]} {[%emt 00:00:31]} 18. Kh1 {[%clk 00:03:37]} {[%emt 00:01:23]}
Nf8 {[%clk 00:06:55]} {[%emt 00:00:31]} 19. Qg4 {[%clk 00:02:12]} {[%emt
00:01:35]} Qc5 {[%clk 00:04:32]} {[%emt 00:02:32]} 20. f5 {[%clk 00:01:20]}
{[%emt 00:01:03]} Ne5 {[%clk 00:04:17]} {[%emt 00:00:25]} 21. Qh3 {[%clk
00:00:34]} {[%emt 00:00:56]} Nxd3 {[%clk 00:03:51]} {[%emt 00:00:36]} 22. Qxd3
{[%clk 00:00:43]} {[%emt 00:00:01]} e5 {[%clk 00:03:00]} {[%emt 00:01:01]} 23.
Nb3 {[%clk 00:00:52]} {[%emt 00:00:01]} Qc7 {[%clk 00:02:18]} {[%emt 00:00:50]}
24. Qh3 {[%clk 00:00:44]} {[%emt 00:00:20]} f6 {[%clk 00:02:12]} {[%emt
00:00:16]} 25. gxf6 {[%clk 00:00:18]} {[%emt 00:00:36]} Bxf6 {[%clk 00:02:16]}
{[%emt 00:00:06]} 26. Qg4 {[%clk 00:00:22]} {[%emt 00:00:04]} Qf7 {[%clk
00:02:00]} {[%emt 00:00:26]} 27. Bf3 {[%clk 00:00:20]} {[%emt 00:00:13]} Red8
{[%clk 00:02:02]} {[%emt 00:00:09]} 28. Rg1 {[%clk 00:00:26]} {[%emt 00:00:03]}
Kh8 {[%clk 00:01:42]} {[%emt 00:00:31]} 29. h4 {[%clk 00:00:26]} {[%emt
00:00:09]} h6 {[%clk 00:01:09]} {[%emt 00:00:43]} 30. Be3 {[%clk 00:00:22]}
{[%emt 00:00:14]} Nh7 {[%clk 00:01:04]} {[%emt 00:00:15]} 31. Nd2 {[%clk
00:00:22]} {[%emt 00:00:11]} Qe7 {[%clk 00:01:07]} {[%emt 00:00:07]} 32. Bf2
{[%clk 00:00:22]} {[%emt 00:00:10]} Rg8 {[%clk 00:00:55]} {[%emt 00:00:22]} 33.
Nf1 {[%clk 00:00:20]} {[%emt 00:00:13]} Bc6 {[%clk 00:00:23]} {[%emt 00:00:41]}
34. Ne3 {[%clk 00:00:28]} {[%emt 00:00:03]} a5 {[%clk 00:00:20]} {[%emt
00:00:13]} 35. Be2 {[%clk 00:00:18]} {[%emt 00:00:19]} b4 {[%clk 00:00:25]}
{[%emt 00:00:05]} 36. axb4 {[%clk 00:00:27]} {[%emt 00:00:02]} axb4 {[%clk
00:00:33]} 37. Ncd5 {[%clk 00:00:36]} {[%emt 00:00:01]} Qb7 {[%clk 00:00:35]}
{[%emt 00:00:06]} 38. Bc4 {[%clk 00:00:28]} {[%emt 00:00:20]} Bb5 {[%clk
00:00:36]} {[%emt 00:00:10]} 39. Bb3 {[%clk 00:00:31]} {[%emt 00:00:07]} Rgf8
{[%clk 00:00:33]} {[%emt 00:00:11]} 40. Nxb4 {[%clk 00:00:15]} {[%emt
00:00:28]} Be2 {[%clk 00:00:31]} {[%emt 00:00:11]} 41. Qxe2 {[%clk 00:00:17]}
{[%emt 00:00:08]} Qxe4+ {[%clk 00:00:35]} {[%emt 00:00:05]} 42. Kh2 {[%clk
00:00:24]} {[%emt 00:00:04]} Qxb4 {[%clk 00:00:40]} {[%emt 00:00:06]} 43. Rg4
{[%clk 00:00:28]} {[%emt 00:00:05]} Qb7 {[%clk 00:00:36]} {[%emt 00:00:11]} 44.
Nd5 {[%clk 00:00:35]} {[%emt 00:00:07]} Rb8 {[%clk 00:00:27]} {[%emt 00:00:17]}
45. Qd3 {[%clk 00:00:18]} {[%emt 00:00:27]} Qb5 {[%clk 00:00:26]} {[%emt
00:00:10]} 46. Qg3 {[%clk 00:00:15]} {[%emt 00:00:13]} Qd7 {[%clk 00:00:25]}
{[%emt 00:00:13]} 47. Ne3 {[%clk 00:00:14]} {[%emt 00:00:10]} Rbc8 {[%clk
00:00:20]} {[%emt 00:00:13]} 48. Be6 {[%clk 00:00:22]} {[%emt 00:00:05]} Qc7
{[%clk 00:00:25]} {[%emt 00:00:04]} 49. Bxc8 {[%clk 00:00:16]} {[%emt
00:00:17]} Qxc8 {[%clk 00:00:29]} {[%emt 00:00:05]} 50. b4 {[%clk 00:00:19]}
{[%emt 00:00:07]} Qb7 {[%clk 00:00:15]} {[%emt 00:00:23]} 51. c3 {[%clk
00:00:16]} {[%emt 00:00:15]} Rc8 {[%clk 00:00:18]} {[%emt 00:00:06]} 52. Qg2
{[%clk 00:00:17]} {[%emt 00:00:09]} Qxg2+ {[%clk 00:00:20]} {[%emt 00:00:08]}
53. Nxg2 {[%clk 00:00:24]} {[%emt 00:00:04]} Rxc3 {[%clk 00:00:28]} {[%emt
00:00:01]} 54. b5 {[%clk 00:00:33]} {[%emt 00:00:01]} Rb3 {[%clk 00:00:33]}
{[%emt 00:00:04]} 55. b6 {[%clk 00:00:41]} {[%emt 00:00:03]} Bd8 {[%clk
00:00:41]} {[%emt 00:00:02]} 56. Rg6 {[%clk 00:00:48]} {[%emt 00:00:03]} Nf6
{[%clk 00:00:40]} {[%emt 00:00:11]} 57. Rg3 {[%clk 00:00:45]} {[%emt 00:00:13]}
Rb4 {[%clk 00:00:31]} {[%emt 00:00:17]} 58. Rd3 {[%clk 00:00:45]} {[%emt
00:00:12]} Ng4+ {[%clk 00:00:29]} {[%emt 00:00:12]} 59. Kg3 {[%clk 00:00:49]}
{[%emt 00:00:06]} Nxf2 {[%clk 00:00:37]} {[%emt 00:00:04]} 60. Kxf2 {[%clk
00:00:57]} {[%emt 00:00:02]} Bxb6+ {[%clk 00:00:45]} {[%emt 00:00:01]} 61. Kf3
{[%clk 00:01:06]} {[%emt 00:00:01]} Bc5 {[%clk 00:00:47]} {[%emt 00:00:07]} 62.
Rd5 {[%clk 00:00:54]} {[%emt 00:00:24]} Rd4 {[%clk 00:00:47]} {[%emt 00:00:10]}
63. Rxd4 {[%clk 00:00:59]} {[%emt 00:00:06]} Bxd4 {[%clk 00:00:55]} {[%emt
00:00:02]} 64. Ke4 {[%clk 00:01:08]} Kg8 {[%clk 00:00:55]} {[%emt 00:00:10]} 65.
Ne1 {[%clk 00:01:13]} {[%emt 00:00:05]} Kf7 {[%clk 00:00:58]} {[%emt 00:00:06]}
66. Nf3 {[%clk 00:01:13]} {[%emt 00:00:11]} Kf6 {[%clk 00:00:39]} {[%emt
00:00:29]} 67. Nd2 {[%clk 00:00:51]} {[%emt 00:00:33]} Bf2 {[%clk 00:00:39]}
{[%emt 00:00:09]} 68. Nf3 {[%clk 00:00:58]} {[%emt 00:00:04]} h5 {[%clk
00:00:36]} {[%emt 00:00:13]} 69. Nd2 {[%clk 00:00:17]} {[%emt 00:00:51]} Bxh4
{[%emt 00:00:23]} 70. Nc4 d5+ {[%clk 00:00:16]} {[%emt 00:00:17]} 71. Kxd5
{[%clk 00:00:35]} {[%emt 00:00:03]} Kxf5 {[%clk 00:00:24]} 72. Nxe5 {[%clk
00:00:43]} {[%emt 00:00:01]} Bg3 {[%clk 00:00:30]} {[%emt 00:00:03]} 73. Nd3
{[%clk 00:00:33]} {[%emt 00:00:22]} h4 {[%clk 00:00:35]} {[%emt 00:00:04]} 74.
Nc1 {[%clk 00:00:13]} {[%emt 00:00:30]} h3 {[%clk 00:00:28]} {[%emt 00:00:16]}
75. Ne2 {[%clk 00:00:22]} {[%emt 00:00:02]} Be5 {[%clk 00:00:29]} {[%emt
00:00:06]} 76. Kd4 {[%emt 00:00:31]} 0-1